Cogmind - Beta 14 @@@ ROGUE MODE // 2024.12.17 @ 20:30:02 Player: opdo Result: Destroyed by ZQ-QQF(R) with Subdweller Beam Cannon Performance ------------- Evolutions (0) 0 Regions Visited (3) 600 Robots Destroyed (14) 70 Value Destroyed (414) 414 Prototype IDs (1) 20 Alien Tech Used (0) 0 Bonus (0) 0 TOTAL SCORE: 1104 Bonus ------- None Cogmind --------- Core Integrity 0/250 Matter 66/300 Energy 200/200 System Corruption 0% Temperature Cool (9) Movement Rolling (110) Location -10/Subcaves Parts ------- > --- POWER (1) -------- Subdweller Power Source > --- PROPULSION (2) --- Subdweller Monowheel > --- UTILITY (2) ------ Small Storage Unit > --- WEAPON (2) ------- Heavy Assault Rifle > --- INVENTORY (8) ---- Ion Engine Subdweller Monowheel Structural Scanner Subdweller Optics Heavy Assault Rifle Heavy Assault Rifle Subdweller Machine Gun Peak State ------------ > --- POWER ------------ Subdweller Power Source > --- PROPULSION ------- Subdweller Monowheel Subdweller Monowheel > --- UTILITY ---------- Small Storage Unit Splice Drone Bay > --- WEAPON ----------- Heavy Assault Rifle Heavy Assault Rifle > --- INVENTORY -------- Ion Engine Subdweller Monowheel Structural Scanner Subdweller Optics Heavy Assault Rifle Heavy Assault Rifle Subdweller Machine Gun Subdweller Shrapnel Launcher [Rating: 19] Favorites ----------- Power Ion Engine Engine Ion Engine Propulsion Aluminum Leg Leg Aluminum Leg Wheel Subdweller Monowheel Utility Small Storage Unit Device Splice Drone Bay Storage Small Storage Unit Weapon Heavy Assault Rifle Ballistic Gun Heavy Assault Rifle Launcher Subdweller Shrapnel Launcher Build | -11 -10 -10 -10 ------- Run | Yrd Mat Min Sub Slots Evolved . | . . . . Power . | . . . . Propulsion . | . . . . Utility . | . . . . Weapon . | . . . . Parts Attached 20 | 7 2 1 10 Power 2 | 1 . . 1 Engine 2 | 1 . . 1 Core . | . . . . Reactor . | . . . . Propulsion 5 | 2 . . 3 Treads . | . . . . Leg 2 | 2 . . . Wheel 3 | . . . 3 Hover . | . . . . Flight . | . . . . Utility 3 | 2 . 1 . Device 2 | 1 . 1 . Storage 1 | 1 . . . Processor . | . . . . Hackware . | . . . . Protection . | . . . . Artifact . | . . . . Weapon 10 | 2 2 . 6 Energy Gun . | . . . . Energy Cannon . | . . . . Ballistic Gun 7 | 2 2 . 3 Ballistic Cannon . | . . . . Launcher 3 | . . . 3 Special Weapon . | . . . . Impact Weapon . | . . . . Slashing Weapon . | . . . . Piercing Weapon . | . . . . Special Melee Weapon . | . . . . Unidentified Prototypes 1 | . . 1 . Parts Lost 4 | . . . 4 Power . | . . . . Propulsion 1 | . . . 1 Utility 1 | . . . 1 Weapon 2 | . . . 2 Highest Loss Streak 4 | . . . 4 To Critical Strikes 1 | . . . 1 Average Slot Usage (%) 99 | . 100 100 99 Engine 14 | . 14 14 14 Leg 24 | . 28 28 22 Wheel 3 | . . . 5 Device 13 | . 14 14 13 Storage 14 | . 14 14 14 Ballistic Gun 25 | . 28 28 24 Launcher 2 | . . . 3 Peak Build Rating 19 | 7 10 16 19 Average Rating 14 | 5 7 13 16 On Entrance 8 | . 7 10 16 Naked Turns . | . . . . Heaviest Build 29 | 14 17 24 29 Greatest Support 40 | 20 20 20 40 Greatest Overweight (x) 1 | . . 1 1 Average Overweight (x) . | . . . . Largest Inventory Capacity 8 | 8 8 8 8 Average Capacity 7 | 7 8 8 8 Most Carried 8 | 3 8 8 8 Average Carried 7 | 2 4 7 7 Final Capacity 8 | 8 8 8 8 Final Carried 8 | 3 8 8 7 Class Distribution -------------------- 92% | Mutant 7% | Scavenger-Mutant Dominant Class ---------------- Mutant | -10/Materials Mutant | -10/Mines Mutant | -10/Subcaves Resources | -11 -10 -10 -10 ----------- Run | Yrd Mat Min Sub Matter Collected 557 | 186 . 86 285 Remotely . | . . . . Salvage Created 450 | 21 13 46 370 Parts 39 | 2 2 6 29 Haulers Intercepted . | . . . . Recyclers Shooed . | . . . . Parts Field Recycled . | . . . . Retrieved Matter . | . . . . Parts Self-Destructed 13 | . . . 13 Prevented . | . . . . Kills | -11 -10 -10 -10 ------- Run | Yrd Mat Min Sub Combat Hostiles Destroyed 12 | . . 3 9 Guns 10 | . . 3 7 AOE 2 | . . . 2 Classes Destroyed 6 | 1 1 1 3 Tunneler 1 | 1 . . . Watcher 1 | . 1 . . Swarmer 3 | . . 3 . Grunt 2 | . . . 2 Artisan 1 | . . . 1 Subdweller 7 | . . . 7 Best Kill Streak 3 | 1 1 3 2 Combat Bots Only 3 | . . 3 2 Max Kills in Single Turn 2 | 1 1 1 2 Gunslinging 1 | . . . 1 Exploded 1 | . . . 1 Melee . | . . . . Uniques/NPCs Destroyed . | . . . . Combat | -11 -10 -10 -10 -------- Run | Yrd Mat Min Sub Hostile Shots Fired 61 | . . 12 49 Missed 13 | . . 3 10 Damage Taken 976 | . . 73 903 Core 255 | . . 36 219 Absorbed by Shields . | . . . . Core Remaining (%) 100 | 100 . . . Volleys Fired 46 | 9 4 5 28 Largest 2 | 2 2 2 2 Hottest 63 | 40 40 46 63 Shots Fired 89 | 18 8 10 53 Gun 79 | 18 8 10 43 Cannon . | . . . . Launcher 10 | . . . 10 Special . | . . . . Kinetic 89 | 18 8 10 53 Thermal . | . . . . Explosive . | . . . . Electromagnetic . | . . . . Robot Hit Streak 18 | 6 1 3 18 Robot Miss Streak 2 | 1 1 2 2 Penetration Max . | . . . . Secondary Targets 2 | . . 1 1 Max Gunslinging Chain 1 | . . 1 1 Shots Hit Robots 59 | 13 4 5 37 Core Hits 26 | 2 3 3 18 Critical Kills . | . . . . Critical Parts Destroyed 2 | 2 . . . Critical Strikes 2 | 2 . . . Destroy 2 | 2 . . . Melee Attacks . | . . . . Impact . | . . . . Slashing . | . . . . Piercing . | . . . . Sneak Attacks . | . . . . Combat Hostiles . | . . . . Follow-up Attacks . | . . . . Damage Inflicted 1122 | 147 34 78 863 Guns 786 | 147 34 78 527 Cannons . | . . . . Explosions 336 | . . . 336 Melee . | . . . . Ramming . | . . . . Kinetic 1122 | 147 34 78 863 Thermal . | . . . . Explosive . | . . . . Electromagnetic . | . . . . Impact . | . . . . Slashing . | . . . . Piercing . | . . . . Highest Corruption . | . . . . Average Corruption . | . . . . Corruption Purged . | . . . . Corruption Blocked . | . . . . Overload Shots . | . . . . Overflow Damage . | . . . . Projectiles . | . . . . Explosions . | . . . . Melee . | . . . . Knockbacks . | . . . . Impact . | . . . . Kinetic . | . . . . Secondary . | . . . . Self-Inflicted Damage 36 | . . . 36 Shots 2 | . . . 2 Rammed . | . . . . Targets Rammed . | . . . . Kicked . | . . . . Crushed . | . . . . Highest Temperature . | . . . . Average Temperature . | . . . . Received Heat Transfer 171 | . . . 171 Siege Activations . | . . . . Robots Corrupted . | . . . . Combat Hostiles . | . . . . Parts Fried . | . . . . Impact Corruptions . | . . . . Robots Melted . | . . . . Combat Hostiles . | . . . . Parts Melted . | . . . . Heat Transferred . | . . . . Parts Sabotaged . | . . . . Parts Stolen . | . . . . Parts Stripped . | . . . . Power Chain Reactions . | . . . . Alert | -11 -10 -10 -10 ------- Run | Yrd Mat Min Sub Peak Influence 89 | 5 50 89 . Initial 19 | . 3 19 . Average 49 | 1 32 67 . Maximum Alert Level . | . . . . Low Security (%) 100 | 100 100 100 . Level 1 . | . . . . Level 2 . | . . . . Level 3 . | . . . . Level 4 . | . . . . Level 5 . | . . . . High Security . | . . . . Max Security . | . . . . Squads Dispatched 1 | . 1 . . Investigation 1 | . 1 . . Extermination . | . . . . Reinforcement . | . . . . Assault . | . . . . Garrison . | . . . . Intercept . | . . . . Searches Triggered . | . . . . Construction Impeded . | . . . . Haulers Reinforced . | . . . . Active Scanning Responses . | . . . . Cargo Convoy Interrupts . | . . . . Stealth | -11 -10 -10 -10 --------- Run | Yrd Mat Min Sub Distress Signals . | . . . . Communications Jammed . | . . . . Distress Signals . | . . . . Times Spotted 18 | . 3 3 12 Peak Tracking Total 3 | . 2 3 3 Tactical Retreats 1 | . . . 1 Traps | -11 -10 -10 -10 ------- Run | Yrd Mat Min Sub Traps Triggered 1 | . 1 . . Indirectly . | . . . . Trap Hack Attempts . | . . . . Triggered . | . . . . Disarmed . | . . . . Reprogrammed . | . . . . Reused . | . . . . Traps Extracted . | . . . . Installed . | . . . . Triggered . | . . . . Machines | -11 -10 -10 -10 ---------- Run | Yrd Mat Min Sub Machines Disabled . | . . . . Max in Single Turn . | . . . . Machines Repaired . | . . . . Machines Dismantled . | . . . . Machines Sabotaged . | . . . . Overloaded Fab Kills . | . . . . Hacking | -11 -10 -10 -10 --------- Run | Yrd Mat Min Sub Machines Accessed 3 | . 2 1 . Terminals 2 | . 2 . . Fabricators . | . . . . Repair Stations . | . . . . Recycling Units . | . . . . Scanalyzers . | . . . . Garrison Access . | . . . . Total Hacks 10 | . 9 1 . Successful 5 | . 4 1 . Failed 5 | . 5 . . Catastrophic . | . . . . Database Lockouts . | . . . . Manual 8 | . 8 . . Terminals 9 | . 9 . . Fabricators . | . . . . Repair Stations . | . . . . Recycling Units . | . . . . Scanalyzers . | . . . . Garrison Access . | . . . . Terminal Hacks 3 | . 2 1 . Robot Analysis 2 | . 2 . . Open Door 1 | . . 1 . Fabricator Hacks . | . . . . Repair Station Hacks . | . . . . Recycling Unit Hacks . | . . . . Scanalyzer . | . . . . Garrison Access Hacks . | . . . . Unauthorized Hacks 2 | . 2 . . Terminals 2 | . 2 . . Botnet 2 | . 2 . . Fabricators . | . . . . Repair Stations . | . . . . Recycling Units . | . . . . Scanalyzers . | . . . . Garrison Access . | . . . . Data Cores Recovered . | . . . . Used . | . . . . Hacking Detections 2 | . 2 . . Full Trace Events . | . . . . Feedback Events . | . . . . Feedback Blocked . | . . . . Robot Schematics Acquired . | . . . . Robots Built . | . . . . Authchips . | . . . . Time . | . . . . Total Robot Build Rating . | . . . . Part Schematics Acquired . | . . . . Parts Built . | . . . . Authchips . | . . . . Time . | . . . . Total Part Build Rating . | . . . . Parts Repaired . | . . . . Time . | . . . . Parts Recycled . | . . . . Recycled Matter . | . . . . Retrieved Matter . | . . . . Retrieved Components . | . . . . Parts Scanalyzed . | . . . . Part Schematics Acquired . | . . . . Parts Damaged . | . . . . Bothacking | -11 -10 -10 -10 ------------ Run | Yrd Mat Min Sub Used RIF Installer . | . . . . Robots Hacked . | . . . . Non-combat . | . . . . Combat . | . . . . Robot Hacks Applied . | . . . . Relay Couplers Released . | . . . . Fabnet Peak Effective % . | . . . . Robots Rewired . | . . . . Allies Hacked . | . . . . Hacks Repelled . | . . . . Allies | -11 -10 -10 -10 -------- Run | Yrd Mat Min Sub Total Allies . | . . . . Largest Group . | . . . . Highest-Rated Group . | . . . . Highest-Rated Ally . | . . . . Total Orders 2 | . . . 2 EXPLORE 2 | . . . 2 Ally Attacks 12 | . . . 12 Total Damage 50 | . . . 50 Kills . | . . . . Allies Corrupted . | . . . . Allies Melted . | . . . . Intel | -11 -10 -10 -10 ------- Run | Yrd Mat Min Sub Robot Analysis Total 2 | . 2 . . Derelict Logs Recovered . | . . . . Drone Launches 12 | . . . 12 Drone Recoveries 11 | . . . 11 Exploration | -11 -10 -10 -10 ------------- Run | Yrd Mat Min Sub Turns Passed 1725 | 92 157 379 1097 Spaces Moved 992 | 48 117 239 588 Core 5 | 5 . . . Treads . | . . . . Legs 834 | 43 117 239 435 Wheels 153 | . . . 153 Hover . | . . . . Flight . | . . . . Fastest Speed 50 | 50 120 120 110 Average Speed 156 | 112 120 151 169 Slowest Speed 190 | 120 120 190 190 Overloaded Moves . | . . . . Propulsion Burnouts . | . . . . Robots Hopped . | . . . . Cave-ins Triggered . | . . . . Exploration Rate (%) 45 | 3 31 56 93 Regions Visited 3 Branch Regions 2 Pre-discovered Areas 1 | . . . 1 Known Exits Taken . | . . . . Unknown Exits Taken 3 | 1 1 1 . Scrap Searched 1 | . . 1 . Spaces Dug . | . . . . Terrain Destroyed 98 | . . . 98 Melee . | . . . . Projectile . | . . . . AOE 98 | . . . 98 Terrain Rammed . | . . . . Walls Destroyed . | . . . . Machines Disabled . | . . . . Actions | -11 -10 -10 -10 --------- Run | Yrd Mat Min Sub Total 1076 | 66 125 247 638 Wait . | . . . . Move 989 | 47 116 238 588 Hop . | . . . . Pick Up 11 | 3 3 1 4 Fast Attach 10 | 7 . 1 2 Attach 1 | . . . 1 Detach . | . . . . Swap 9 | . 2 . 7 Drop 10 | . . 2 8 Fire 46 | 9 4 5 28 Melee . | . . . . Ram . | . . . . Kick . | . . . . Crush . | . . . . Escape Stasis . | . . . . Rewire . | . . . . Trap . | . . . . Miscellaneous . | . . . . Route ------- -11/Scrapyard -10/Materials -10/Mines -10/Subcaves (discovered 3 exits: [*Mat x2] / [*Rec]) History --------- Turn | Location | Event 6 | -11/Scrapyard | Discovered new exit (range 16) 93 | -11/Scrapyard | Entered Materials 192 | -10/Materials | Discovered new exit (range 16) 250 | -10/Materials | Entered Mines 302 | -10/Mines | Build established: Mutant 422 | -10/Mines | Found the Drone Emporium 426 | -10/Mines | Found Prototype Device 426 | -10/Mines | Identified Splice Drone Bay 604 | -10/Mines | Discovered new exit (range 15) 629 | -10/Mines | Entered Subcaves 659 | -10/Subcaves | Learned location of Zion (-6) 659 | -10/Subcaves | Met a Zionite searching for "candidates" 660 | -10/Subcaves | Discovered new exit (range 85) 676 | -10/Subcaves | Discovered new exit (range 70) 983 | -10/Subcaves | Discovered new exit (range 66) 1549 | -10/Subcaves | Ambushed by angry Subdweller bent on revenge 1714 | -10/Subcaves | Ambushed by Subdweller buried in earth 1717 | -10/Subcaves | Core integrity fell below 50% 1718 | -10/Subcaves | Ambushed by Subdweller buried in earth 1721 | -10/Subcaves | Core integrity fell below 20% 1726 | -10/Subcaves | Destroyed by ZQ-QQF(R) with Subdweller Beam Cannon Last Messages --------------- 01538_ UY-E1W(u) cries out in pain. 01538_ UY-E1W(u) destroyed. 01547_ The unstable cave ceiling collapses. 01548_ Acquired 8 matter. 01549_ VR-ZHC(R) angrily emerges from the Twisted Machinery. 01549_ VR-ZHC(R): "SUBMAD!" 01568_ VR-ZHC(R) destroyed. 01575_ Dropped Sub. Monowheel. 01594_ Acquired 42 matter. 01705_ CN-S5I(R) destroyed. 01710_ Critical hit (Destroy). 01710_ Hvy. Assault Rifle destroyed. 01715_ GI-L5M(R): "ARGHSUB!" 01718_ Destroyed Scrap Shield. 01718_ 6F-1FP(R) destroyed. 01718_ Splice Drone Bay destroyed. 01719_ ZQ-QQF(R): "ARGHSUB!" 01723_ Sub. Shrapnel Launcher destroyed. 01724_ Sub. Monowheel destroyed. Map ----- +----------------------------------------------------+ | ???????????????#### """ | | ???????????????# ## ""###" ## | | ???????????????# """######### ## | | ???????????????# ###????## | | ????????????#### ##????## | | ???????????## ## ###???### | | ???????????# ## ###???## ### | | ???????????# ##### #????## # ##?? | | ???????????# ##??## #????# #??? | | ???????????# #???#### ##????# #??? | | ???????????## #?????## ##?????## #####??? | | ????????????# ##???### #??????# ##?????? | | ???????????## ####????# ##??????## #?????? | | ???????????# #???????# #???????## ##?????? | | ???????????# #???????## #??????## #??????? | | ???????????## #????????# #??????# #"####??? | | ????????????## #?????###""""#??????# ## " #??? | | ????????????# #????## ###?????## " #??? | | ????????????# ###?#### " ###???????# & &#??? | | #???????????# #??#; ###???????## " "##?? | | #???? #### "#??# ##???????# " #?? | | ???? "" ;### R ;; ###"#???# # #?? | | ??? ; ;; " ??## ## ##?? | | ???? ;;"" ???#### # #?? | | # ? ;;""""#????????? # ##?? | | @ "##???????? #??? | | R ; #??????? ??? | | ????? #"""""#????"" ?? | | ????? R # #??#""" ? | | ?????# ##; #### ###??# " ########? | | ?????? ???# ; ##???###????######????????? | | ??????? ?????#### ####?????????????????????????? | | ??????????????????##?????????????????????????????? | | ?????????????????????????????????????????????????? | | ?????????????????????????????????????????????????? | | ?????????????????????????????????????????????????? | | ?????????????????????????????????????????????????? | | ?????????????????????????????????????????????????? | | ?????????????????????????????????????????????????? | | ?????????????????????????????????????????????????? | | ?????????????????????????????????????????????????? | | ?????????????????????????????????????????????????? | | ?????????????????????????????????????????????????? | | ?????????????????????????????????????????????????? | | ?????????????????????????????????????????????????? | | | | | | | | | | | +----------------------------------------------------+ Best States ------------- Heat Dissipation 25 Energy Generation 15 Energy Capacity 250 Matter Stores 263 Matter Capacity 300 Sight Range 16 Terrain Scan Density 10 Evasion (%) 55 Item Schematics ----------------- None Robot Schematics ------------------ None Fabricated ------------ Nothing Alien Tech Used ----------------- None Achievements -------------- None Challenges ------------ None Game ------ Seed NeutronFireRipteeth Manual? 0 Play Time 00:09:31 Cumulative 62.9 hours Start 2024.12.17 @ 20:21:25 End 2024.12.17 @ 20:30:02 Sessions 1 Manual Loads 0 Difficulty Rogue Special Mode None Game No. 188 Rogue 186 Adventurer 2 Explorer 0 Win Type - Total 1 Types 1/0/0/0/0/0/0/0/0 Lore% 56 Gallery% 53 Achievement% 41 Wizard Run 0 Options --------- Layout 2 ASCII 0 Keyboard 0 Movement Arrows Keybinds 0 Fullscreen 2 Font 24/Smallcaps Map View 50x44 Zoom Use 0% Tactical HUD 1 Map Filters NONE Filters NONE Steam 1 RUN: 99f9a578-cf32-44cb-bb9d-a0552f77bf5a